Cogmind - Beta 15 @@@ ROGUE MODE // 2025.08.28 @ 05:54:01 Player: shapeshifter Result: Destroyed by P-80 Master with Gamma Rifle Performance ------------- Evolutions (7) 3500 Regions Visited (24) 4800 Robots Destroyed (191) 955 Value Destroyed (9120) 9120 Prototype IDs (32) 640 Alien Tech Used (0) 0 Bonus (8152) 8152 TOTAL SCORE: 27167 Bonus ------- High Alert Combat Kills 2398 Follower Combat Kills 3431 Met Data Miner 300 Met Imprinter 300 Was Imprinted 300 Met Warlord at Base 500 MAIN.C Attacked Warlord 500 Warlord Defense Kills 950 Built Enhanced Grunts 300 A7 Reached Mainframe 300 Met R17 at Cetus 500 Friendly Fire -1627 Cogmind --------- Core Integrity 0/1300 Matter 59/300 Energy 99/100 System Corruption 40% Temperature Cool (0) Movement Core (50) Location -3/Research Parts ------- > --- POWER (3) -------- (None) > --- PROPULSION (4) --- Combat Antigrav System > --- UTILITY (10) ----- Machine Analyzer Advanced Signal Interpreter > --- WEAPON (4) ------- (None) > --- INVENTORY (5) ---- High-capacity Storage Unit Advanced Force Field Improved Remote Force Field Hypervelocity Railgun Scatter Rocket Array Peak State ------------ > --- POWER ------------ Zionite Heavy DM Reactor Quantum Reactor Light Quantum Reactor > --- PROPULSION ------- Centrium Heavy Treads Centrium Heavy Treads > --- UTILITY ---------- Advanced Cooling System High-capacity Storage Unit Advanced Signal Interpreter Centrium Medium Armor Plating Centrium Medium Armor Plating Centrium Medium Armor Plating Centrium Medium Armor Plating Centrium Medium Armor Plating Advanced Thermal Shield Remote Force Field > --- WEAPON ----------- Advanced KE Penetrator Advanced KE Penetrator Advanced KE Penetrator Advanced KE Penetrator > --- INVENTORY -------- Zionite Heavy DM Reactor Particle Reactor Centrium Heavy Treads Centrium Heavy Treads Centrium Heavy Treads Stasis Canceller Stealth Drone Bay Advanced Variable Charge Gun Advanced Variable Charge Gun Advanced Variable Charge Gun Vortex Rail Vortex Rail Compact HERF Cannon Scatter Rocket Array Micro-nuke Launcher Improved Remote Datajack [Rating: 180] Favorites ----------- Power Light Angular Momentum Engine Engine Light Angular Momentum Engine Power Core Reinforced Fission Core Reactor Zionite Heavy DM Reactor Propulsion Spiked Treads Treads Spiked Treads Leg Improved Titanium Leg Wheel Armored Huge Wheel Hover Unit Cooled Antigrav System Utility High-capacity Storage Unit Device Improved Sensor Array Storage High-capacity Storage Unit Processor Improved Signal Interpreter Hackware System Shield Protection Layered Light Armor Plating Weapon Beamcaster Energy Gun Beamcaster Energy Cannon Disruptor Cannon Ballistic Gun Light Assault Rifle Ballistic Cannon Magnetic Acceleration Cannon Launcher Scatter Rocket Array Special Weapon Improved Remote Datajack Slashing Weapon Phasing Sabre Piercing Weapon Spear Build | -11 -10 -10 -10 -9 -8 -7 -7 -7 -7 -6 -6 -6 -6 -6 -5 -5 -5 -5 -5 -4 -4 -4 -4 -3 ------- Run | Yrd Mat Min Exi Min Mat Fac Low Low Dat Pro Fac Low Low Zio Pro Fac Upp Upp War Pro Fac Ext Cet Res Slots Evolved 14 | . . . . . 4 2 . . . . 2 . . . . 2 . . . . 2 . . 2 Power 2 | . . . . . . 1 . . . . . . . . . . . . . . . . . 1 Propulsion 2 | . . . . . 1 1 . . . . . . . . . . . . . . . . . . Utility 8 | . . . . . 1 . . . . . 2 . . . . 2 . . . . 2 . . 1 Weapon 2 | . . . . . 2 . . . . . . . . . . . . . . . . . . . Parts Attached 178 | 6 5 2 . . 13 14 2 9 . 4 3 3 3 4 5 13 1 1 11 . 15 21 21 22 Power 23 | 1 2 . . . 1 1 . 1 . 1 . . 2 . 1 1 . . . . 2 5 2 3 Engine 8 | 1 2 . . . . . . 1 . 1 . . 2 . . 1 . . . . . . . . Core 3 | . . . . . 1 1 . . . . . . . . 1 . . . . . . . . . Reactor 12 | . . . . . . . . . . . . . . . . . . . . . 2 5 2 3 Propulsion 32 | 2 . . . . 3 5 . 4 . . . 1 . . 2 1 . . 3 . 2 . 6 3 Treads 25 | 2 . . . . 3 1 . 4 . . . 1 . . 2 1 . . 3 . 2 . 6 . Leg 1 | . . . . . . 1 . . . . . . . . . . . . . . . . . . Wheel 3 | . . . . . . 3 . . . . . . . . . . . . . . . . . . Hover 3 | . . . . . . . . . . . . . . . . . . . . . . . . 3 Flight . | . . . . . . . . . . . . . . . . . . . . . . . . . Utility 62 | 1 2 1 . . 3 3 2 . . 1 3 1 . 1 . 6 1 . 3 . 8 8 6 12 Device 32 | . . 1 . . 1 1 1 . . 1 . . . . . 4 1 . . . 5 6 1 10 Storage 7 | 1 2 . . . 1 . . . . . . . . . . 1 . . 1 . 1 . . . Processor 6 | . . . . . . . 1 . . . 1 . . . . 1 . . 1 . 1 . . 1 Hackware 4 | . . . . . . 1 . . . . 2 . . . . . . . . . . 1 . . Protection 13 | . . . . . 1 1 . . . . . 1 . 1 . . . . 1 . 1 1 5 1 Artifact . | . . . . . . . . . . . . . . . . . . . . . . . . . Weapon 61 | 2 1 1 . . 6 5 . 4 . 2 . 1 1 3 2 5 . 1 5 . 3 8 7 4 Energy Gun 25 | . 1 . . . 1 3 . 4 . 1 . 1 1 . 1 1 . . 3 . 2 4 2 . Energy Cannon 4 | . . . . . . . . . . . . . . . . . . . . . 1 2 . 1 Ballistic Gun 20 | 2 . 1 . . 5 1 . . . 1 . . . 1 . . . . 1 . . . 5 3 Ballistic Cannon 4 | . . . . . . . . . . . . . . . 1 2 . 1 . . . . . . Launcher 3 | . . . . . . . . . . . . . . . . 2 . . . . . 1 . . Special Weapon 1 | . . . . . . . . . . . . . . . . . . . . . . 1 . . Impact Weapon . | . . . . . . . . . . . . . . . . . . . . . . . . . Slashing Weapon 3 | . . . . . . . . . . . . . . 2 . . . . 1 . . . . . Piercing Weapon 1 | . . . . . . 1 . . . . . . . . . . . . . . . . . . Special Melee Weapon . | . . . . . . . . . . . . . . . . . . . . . . . . . Unidentified Prototypes 22 | . . . . . 3 1 . . . . . . . . . 3 . . 1 . 5 3 4 2 Corrupted Parts 12 | . . . . . . . . . . . . 1 . . . . . . . . . . 11 . System Corruption 69 | . . . . . . . . . . . . 7 . . . . . . . . . . 62 . Parts Lost 69 | . 1 . . . 1 . . 5 . 1 1 . . . 6 . . 4 . 1 1 10 7 31 Power 13 | . . . . . . . . 1 . . . . . . 2 . . . . 1 . 2 1 6 Propulsion 11 | . . . . . . . . . . . . . . . 2 . . 2 . . . . 1 6 Utility 23 | . . . . . 1 . . 1 . . 1 . . . . . . 1 . . 1 2 3 13 Weapon 22 | . 1 . . . . . . 3 . 1 . . . . 2 . . 1 . . . 6 2 6 Highest Loss Streak 8 | . 1 . . . 1 . . 2 . 1 1 . . . 3 . . 4 . 1 1 6 6 8 To Critical Strikes 3 | . . . . . . . . . . . . . . . . . . 1 . . . 1 1 . Average Backups 16 | 3 6 8 10 12 16 18 19 19 18 18 19 19 19 19 19 19 18 19 17 13 13 17 16 11 Power . | . 1 1 1 1 1 . . . 1 1 1 1 1 . . . . 1 1 1 . 1 2 . Propulsion . | 1 2 2 2 2 2 2 1 1 . . . . . . . . . . . . . 2 2 1 Utility 9 | . . 1 1 3 6 9 11 12 12 12 14 13 14 16 16 15 14 14 11 7 4 4 3 2 Weapon 4 | . 2 4 6 6 6 6 5 4 4 4 3 4 3 1 2 2 3 3 3 4 6 8 6 4 Tool/Special . | . . . . . . . . . . . . . . . . . . . . . . . . . Unused Backups 52 | . 1 . . . 2 5 1 4 . 2 2 1 1 9 . 2 1 . 7 . 3 5 . 6 Power 3 | . 1 . . . . . . . . . . . . . . . . . 1 . . 1 . . Propulsion 6 | . . . . . 1 2 . 1 . . . . . 1 . . . . . . 1 . . . Utility 31 | . . . . . 1 2 . 3 . 1 2 1 1 8 . 1 . . 6 . 1 . . 4 Weapon 11 | . . . . . . 1 1 . . 1 . . . . . 1 . . . . 1 4 . 2 Tool/Special 1 | . . . . . . . . . . . . . . . . . 1 . . . . . . . Average Slot Usage (%) 89 | . 84 98 100 100 98 91 83 81 100 95 99 100 100 98 93 96 100 82 85 97 90 85 82 54 Engine 5 | . 13 14 14 14 1 . . . 7 11 13 13 13 13 7 4 5 5 5 3 . . . . Core 3 | . . . . . 7 14 15 12 7 3 . . . . 1 5 5 5 5 5 2 . . . Reactor 1 | . . . . . . . . . . . . . . . . . . . . . 5 9 10 6 Treads 17 | . 28 28 28 28 25 14 . 2 30 30 26 26 26 26 25 23 23 11 11 23 15 10 9 7 Wheel 1 | . . . . . . 7 15 13 . . . . . . . . . . . . . . . . Device 12 | . . 12 14 14 16 5 6 5 . 6 6 6 6 6 6 8 14 17 17 17 22 24 20 10 Storage 6 | . 14 14 14 14 9 7 7 7 7 7 6 6 6 6 6 5 5 5 5 5 9 10 8 2 Processor 8 | . . . . . . . 6 7 7 7 13 13 13 13 13 16 13 11 11 11 7 5 5 5 Protection 3 | . . . . . 1 5 . 1 7 . . 5 6 6 6 5 5 . 2 5 5 4 9 8 Energy Gun 9 | . 6 . . . . 10 15 15 23 18 13 20 15 11 10 10 11 5 4 5 9 13 6 . Ballistic Gun 8 | . 21 27 28 28 35 18 13 11 7 7 7 6 5 7 4 . . . 4 5 2 . 6 8 Ballistic Cannon 3 | . . . . . . . . . . . . . . . 3 10 11 13 9 5 2 . . . Peak Build Rating 180 | 6 7 10 10 10 29 54 55 55 48 49 57 58 61 63 67 86 84 85 101 100 128 128 166 180 Average Rating 70 | 3 6 8 10 10 24 47 54 52 48 45 56 56 59 59 62 79 82 71 76 98 108 119 133 108 On Entrance 58 | . 6 7 10 10 10 29 54 55 48 48 49 57 57 61 61 59 83 84 71 100 95 116 122 166 Naked Turns . | . . . . . . . . . . . . . . . . . . . . . . . . . Heaviest Build 167 | 10 28 28 28 28 60 74 71 80 80 80 79 88 89 84 87 107 108 108 109 109 123 130 139 167 Greatest Support 160 | 40 40 40 40 40 63 83 56 90 90 90 90 90 88 88 104 111 111 111 109 109 140 140 160 160 Greatest Overweight (x) 3 | . . . . . . 2 1 3 . . . 1 1 . 1 . . 1 1 . 1 . . 2 Average Overweight (x) . | . . . . . . 1 1 . . . . . . . . . . . . . . . . . Largest Inventory Capacity 20 | 8 15 15 15 15 20 20 20 20 20 20 20 20 20 20 20 20 20 20 20 20 20 20 20 20 Average Capacity 19 | 7 9 15 15 15 18 20 20 20 20 20 20 20 20 20 20 20 20 20 20 20 20 20 20 15 Most Carried 20 | 5 10 10 12 13 20 20 20 20 18 20 20 20 20 20 20 20 20 20 20 20 20 20 20 20 Average Carried 17 | 3 6 8 10 12 16 19 19 19 18 18 19 19 19 19 19 19 18 19 19 20 16 19 18 13 Final Capacity 20 | 8 15 15 15 15 20 20 20 20 20 20 20 20 20 20 20 20 20 20 20 20 20 20 20 5 Final Carried 20 | 4 7 10 12 13 19 20 20 18 18 20 20 19 20 20 20 19 20 20 20 20 17 20 20 5 Class Distribution -------------------- 24% | Derelict-Skirmisher 18% | Scavenger-Tank 14% | Derelict-Assassin 10% | Mutant 9% | Skirmisher 6% | Messiah-Tank 6% | Derelict-Tank 4% | Tank Dominant Class ---------------- Mutant | -10/Materials Mutant | -10/Mines Mutant | -10/Exiles Mutant | -9/Mines Scavenger-Tank | -8/Materials Tank | -7/Factory Skirmisher | -7/Lower Caves Skirmisher | -7/Lower Caves Tank | -7/Data Miner Derelict-Skirmisher | -6/Proximity Caves Derelict-Assassin | -6/Factory Derelict-Skirmisher | -6/Lower Caves Derelict-Assassin | -6/Lower Caves Derelict-Assassin | -6/Zion Derelict-Assassin | -5/Proximity Caves Derelict-Skirmisher | -5/Factory Scavenger-Tank | -5/Upper Caves Derelict-Skirmisher | -5/Upper Caves Derelict-Tank | -5/Warlord Scavenger-Tank | -4/Proximity Caves Derelict-Tank | -4/Factory Messiah-Tank | -4/Extension Scavenger-Tank | -4/Cetus Scavenger-Tank | -3/Research Resources | -11 -10 -10 -10 -9 -8 -7 -7 -7 -7 -6 -6 -6 -6 -6 -5 -5 -5 -5 -5 -4 -4 -4 -4 -3 ----------- Run | Yrd Mat Min Exi Min Mat Fac Low Low Dat Pro Fac Low Low Zio Pro Fac Upp Upp War Pro Fac Ext Cet Res Matter Collected 5666 | 260 89 59 . . 355 386 194 197 . 124 56 79 137 76 313 22 209 291 404 120 433 408 290 1164 Remotely . | . . . . . . . . . . . . . . . . . . . . . . . . . Salvage Created 7899 | . 330 90 . . 498 574 98 477 . 221 94 222 316 . 247 22 40 495 306 199 557 1506 390 1217 Parts 340 | . 19 9 . . 23 33 5 26 . 9 5 12 14 . 5 1 3 11 9 18 31 51 15 41 Haulers Intercepted 4 | . 1 . . . 2 . . . . . . . . . . . . . . . 1 . . . Recyclers Shooed 4 | . 1 . . . . . . . . . . . . . . . . . . . 2 1 . . Parts Field Recycled . | . . . . . . . . . . . . . . . . . . . . . . . . . Retrieved Matter . | . . . . . . . . . . . . . . . . . . . . . . . . . Parts Self-Destructed 70 | . . . . . . . 3 19 . 8 . 5 8 . 6 . 7 5 . 9 . . . . Prevented 26 | . . . . . . . 2 4 . 1 . 3 5 1 7 . 1 1 . 1 . . . . Kills | -11 -10 -10 -10 -9 -8 -7 -7 -7 -7 -6 -6 -6 -6 -6 -5 -5 -5 -5 -5 -4 -4 -4 -4 -3 ------- Run | Yrd Mat Min Exi Min Mat Fac Low Low Dat Pro Fac Low Low Zio Pro Fac Upp Upp War Pro Fac Ext Cet Res Combat Hostiles Destroyed 164 | . 7 4 . . 8 10 4 9 . 3 1 5 5 . 6 . 1 23 7 9 9 28 3 22 Melee 3 | . . . . . . . . . . . . . 3 . . . . . . . . . . . Guns 99 | . 7 4 . . 8 9 4 9 . 3 1 4 2 . 3 . . 4 . 2 5 13 3 18 Cannons 7 | . . . . . . . . . . . . . . . 3 . 1 2 1 . . . . . AOE 55 | . . . . . . 1 . . . . . 1 . . . . . 17 6 7 4 15 . 4 Classes Destroyed 22 | . 4 . . . . 5 . 3 . . . 1 . . 1 . . 2 1 . . 3 . 2 Worker 7 | . . . . . . 1 . . . . 1 . . . . . . . . . . 1 . 4 Builder 4 | . . . . . . 1 . . . . . . . . . . . . . . 1 . . 2 Hauler 4 | . 1 . . . 2 . . . . . . . . . . . . . . . 1 . . . Recycler 2 | . . . . . . . . . . . . . . . . . . . . . . 2 . . Operator 2 | . . . . . . 1 . . . . . . . . . 1 . . . . . . . . Watcher 3 | . 1 . . . . . . . . . . . . . . . . . . . 1 . . 1 Swarmer 40 | . 2 3 . . . . 4 6 . . . 3 . . 2 . . 6 . 8 4 2 . . Saboteur 1 | . . . . . . . . . . . . . . . . . . . . . . 1 . . Grunt 64 | . 5 1 . . 8 7 . . . . . . 4 . 1 . . 12 3 . 2 14 . 7 Brawler 7 | . . . . . . . . . . 2 . . . . 1 . . 1 1 . . 1 . 1 Duelist 7 | . . . . . . . . . . . . . . . . . . 2 1 . . 3 . 1 Protector 3 | . . . . . . . . . . . . . . . 1 . . 1 1 . . . . . Sentry 8 | . . . . . . 1 . 1 . 1 1 . . . . . . 1 . . 1 1 . 1 Demolisher 3 | . . . . . . . . . . . . . . . . . . . . . . 3 . . Specialist 1 | . . . . . . . . . . . . . . . . . . . . . . . . 1 Hunter 8 | . . . . . . . . . . . . 1 . . . . 1 . . . . . . 6 Programmer 12 | . . . . . . 2 . . . . . . 1 . 1 . . . . . 2 3 . 3 Heavy 2 | . . . . . . . . . . . . . . . . . . . . . . . . 2 Behemoth 2 | . . . . . . . . 1 . . . . . . . . . . . 1 . . . . Cetus Guard 3 | . . . . . . . . . . . . . . . . . . . . . . . 3 . Enhanced Grunt 1 | . . . . . . . . . . . . . . . . . . . . . . . 1 . Executioner 1 | . . . . . . . . . . . . . . . . . . . 1 . . . . . Z-Courier 1 | . . . . . . . . . . . . . . . . . . . . . . . 1 . Samaritan 1 | . . . . . . . . . . . . . . . . . . 1 . . . . . . Savage 2 | . . . . . . . . 1 . . . . . . . . . . . 1 . . . . Bouncer 1 | . . . . . . . . . . . . . . . . . . . 1 . . . . . Mutant 2 | . . . . . . . . 1 . . . 1 . . . . . . . . . . . . Best Kill Streak 23 | . 2 3 . . 3 4 3 3 . 3 1 3 2 . 2 1 1 14 7 4 5 23 2 6 Combat Bots Only 22 | . 2 3 . . 3 4 3 3 . 3 1 3 2 . 2 . 1 14 7 4 4 22 2 6 Max Kills in Single Turn 6 | . 1 1 . . 1 2 1 2 . 1 1 1 1 . 1 1 1 4 4 4 4 6 1 5 Gunslinging 1 | . . . . . . . . 1 . . . . . . . . . . . . . . . 1 Exploded 5 | . . . . . . 1 . . . . . 1 . . . . . 4 3 3 4 5 . 2 Melee 1 | . . . . . . . . . . . . . 1 . . . . . . . . . . . Uniques/NPCs Destroyed 1 | . . . . . . . . . . . . . . . . . . . 1 . . . . . Warlord (-5/Warlord) Combat | -11 -10 -10 -10 -9 -8 -7 -7 -7 -7 -6 -6 -6 -6 -6 -5 -5 -5 -5 -5 -4 -4 -4 -4 -3 -------- Run | Yrd Mat Min Exi Min Mat Fac Low Low Dat Pro Fac Low Low Zio Pro Fac Upp Upp War Pro Fac Ext Cet Res Hostile Shots Fired 1585 | . 64 13 . . 39 83 18 95 . 60 18 29 46 . 58 . 16 54 2 25 23 173 36 733 Missed 551 | . 24 3 . . 6 28 9 43 . 21 6 9 19 . 14 . 1 17 2 9 10 47 16 267 Hits 1034 | . 40 10 . . 33 55 9 52 . 39 12 20 27 . 44 . 15 37 . 16 13 126 20 466 Melee 12 | . . . . . . . . . . . . . . . 3 . . . . . . 1 . 8 Projectile 1022 | . 40 10 . . 33 55 9 52 . 39 12 20 27 . 41 . 15 37 . 16 13 125 20 458 AOE 1 | . . . . . . . . . . . . . . . . . . . . . . 1 . . Critical Strikes 44 | . . . . . 3 1 . . . . . . 4 . 4 . . 1 . . . 5 9 17 Part Disruptions 5 | . . . . . . . . 1 . . . . . . . . . . . . . . . 4 Damage Taken 17913 | . 464 89 . . 470 835 137 498 . 284 93 254 446 16 1089 . 164 624 29 325 114 2240 609 9133 Core 2268 | . 60 35 . . 70 119 48 56 . 29 16 17 35 . 45 . 71 29 . 51 . 260 23 1304 Absorbed by Shields 1494 | . . . . . 62 . . . . . . . . . . . 83 332 31 145 118 451 . 272 Reduced by Siege Mode 20 | . . . . . . . . . . . . . . . . . . . . . . . 20 . Ignored by Resistances 964 | . . . . . . . . . . . . . . . . . . . . . 21 453 . 490 Regen/Repaired (Parts) 89 | . . . . . . . . . . . . . . . . . . . 89 . . . . . Core Remaining (%) 79 | 100 . . . 62 87 . . . . 64 . . . . 86 . . . . 84 . . 75 . Volleys Fired 469 | . 38 6 . . 31 40 9 22 . 13 2 13 8 . 34 3 5 16 4 11 17 63 17 117 Largest 4 | . 2 2 . . 4 4 4 4 . 4 4 4 4 . 4 2 4 4 2 2 4 4 3 4 Hottest 350 | . 70 70 . . 88 148 150 185 . 175 155 180 185 . 193 115 224 224 77 125 302 350 188 140 Shots Fired 1026 | . 76 12 . . 124 114 30 68 . 23 8 36 26 . 59 4 20 24 5 13 37 108 36 203 Gun 917 | . 76 12 . . 124 114 30 68 . 23 8 36 26 . 31 1 10 9 1 8 30 94 29 187 Cannon 75 | . . . . . . . . . . . . . . . 28 3 10 8 1 . 6 11 7 1 Launcher 34 | . . . . . . . . . . . . . . . . . . 7 3 5 1 3 . 15 Special . | . . . . . . . . . . . . . . . . . . . . . . . . . Kinetic 604 | . 64 9 . . 124 90 18 31 . 13 4 8 9 . 38 3 10 8 2 1 4 . 16 152 Thermal 124 | . 12 3 . . . . . 4 . . . . 6 . 14 1 5 8 . . 6 46 14 5 Explosive 34 | . . . . . . . . . . . . . . . . . . 7 3 5 1 3 . 15 Electromagnetic 185 | . . . . . . 24 12 33 . 10 4 28 11 . 7 . 5 1 . 7 14 22 6 1 Entropic 49 | . . . . . . . . . . . . . . . . . . . . . . 19 . 30 Phasic 30 | . . . . . . . . . . . . . . . . . . . . . 12 18 . . Robot Hit Streak 22 | . 5 2 . . 9 13 3 10 . 13 6 8 6 . 10 3 4 6 3 4 8 22 15 11 Robot Miss Streak 11 | . 4 2 . . 4 5 6 8 . 4 1 4 3 . 6 . 3 4 6 10 11 4 3 5 Penetration Max 4 | . . . . . . . . . . . . . 1 . 1 . . . . . . 4 1 1 Secondary Targets 15 | . . . . . . 2 1 3 . 2 . 2 . . . . . . . . . . . 5 Max Gunslinging Chain 1 | . . . . . . 1 1 1 . 1 . 1 . . . . . . . . . . . 1 Shots Hit Robots 622 | . 44 5 . . 74 64 13 44 . 18 7 17 21 . 29 2 10 12 4 7 23 72 24 132 Core Hits 561 | . 23 5 . . 31 29 7 27 . 9 3 12 12 . 14 2 3 108 47 27 20 78 16 88 Critical Kills 16 | . . . . . . . . . . . . . 1 . 3 1 . 1 . . . . 2 8 Critical Parts Destroyed 27 | . . . . . 1 . . . . . . . 1 . 1 . . . . . . 7 2 15 Critical Strikes 51 | . . . . . 1 . . . . . . 2 3 . 5 1 . 2 . . 1 7 5 24 Burn 4 | . . . . . . . . . . . . . 1 . 1 . . 1 . . . . 1 . Destroy 35 | . . . . . 1 . . . . . . . 2 . 4 1 . 1 . . . . 4 22 Corrupt 2 | . . . . . . . . . . . . 2 . . . . . . . . . . . . Detonate 9 | . . . . . . . . . . . . . . . . . . . . . . 7 . 2 Intensify 1 | . . . . . . . . . . . . . . . . . . . . . 1 . . . Melee Attacks 14 | . . . . . . 1 . . . . 2 . 7 . . . . . 1 . 3 . . . Impact . | . . . . . . . . . . . . . . . . . . . . . . . . . Slashing 4 | . . . . . . . . . . . . . . . . . . . 1 . 3 . . . Piercing 10 | . . . . . . 1 . . . . 2 . 7 . . . . . . . . . . . Sneak Attacks 1 | . . . . . . . . . . . 1 . . . . . . . . . . . . . Combat Hostiles . | . . . . . . . . . . . . . . . . . . . . . . . . . Follow-up Attacks . | . . . . . . . . . . . . . . . . . . . . . . . . . Damage Inflicted 26278 | . 386 63 . . 768 1271 196 880 . 290 174 339 417 . 869 75 194 3334 1118 980 1092 7290 802 5740 Guns 13642 | . 386 63 . . 768 1070 196 784 . 290 104 287 270 . 571 22 110 151 27 91 665 3483 712 3592 Cannons 808 | . . . . . . . . . . . . . . . 298 53 84 49 29 . 81 116 90 8 Explosions 11460 | . . . . . . 201 . 96 . . . 52 . . . . . 3134 1062 889 314 3683 . 2029 Melee 249 | . . . . . . . . . . . 70 . 147 . . . . . . . 32 . . . Ramming 119 | . . . . . . . . . . . . . . . . . . . . . . 8 . 111 Kinetic 6529 | . 312 37 . . 768 767 119 304 . 184 58 41 107 . 542 53 84 49 56 22 73 . 403 2550 Thermal 5230 | . 74 26 . . . 107 . 147 . . . 52 70 . 246 22 85 151 . . 114 3516 309 311 Explosive 8694 | . . . . . . . . . . . . . . . . . . 3134 1062 889 314 1457 . 1838 Electromagnetic 2231 | . . . . . . 397 77 429 . 106 46 246 93 . 81 . 25 . . 69 214 350 90 8 Impact . | . . . . . . . . . . . . . . . . . . . . . . . . . Slashing 32 | . . . . . . . . . . . . . . . . . . . . . 32 . . . Piercing 217 | . . . . . . . . . . . 70 . 147 . . . . . . . . . . . Entropic 2301 | . . . . . . . . . . . . . . . . . . . . . . 1379 . 922 Phasic 925 | . . . . . . . . . . . . . . . . . . . . . 345 580 . . Highest Corruption 68 | . . . . . . . . . . . . 7 7 7 2 . . . . . 1 6 68 40 Average Corruption 6 | . . . . . . . . . . . . 7 7 7 1 . . . . . 1 1 17 16 Corruption Purged . | . . . . . . . . . . . . . . . . . . . . . . . . . Corruption Blocked . | . . . . . . . . . . . . . . . . . . . . . . . . . Effects 120 | . . . . . . . . . . . . 12 23 2 7 . . . . . 2 16 20 38 Message Errors 32 | . . . . . . . . . . . . 3 9 1 1 . . . . . . 4 8 6 Matter Fused 25 | . . . . . . . . . . . . 1 6 1 1 . . . . . . 5 5 6 Heat Flow Errors 12 | . . . . . . . . . . . . 2 1 . 1 . . . . . 1 1 2 4 Energy Discharges 10 | . . . . . . . . . . . . 1 1 . 1 . . . . . . . 3 4 Parts Rejected 2 | . . . . . . . . . . . . . . . . . . . . . . . . 2 Parts Fused 1 | . . . . . . . . . . . . . . . . . . . . . . . . 1 Data Loss (minor) 13 | . . . . . . . . . . . . 2 3 . 1 . . . . . 1 3 1 2 Data Loss (major) 7 | . . . . . . . . . . . . 2 1 . 1 . . . . . . 1 . 2 Misfires 3 | . . . . . . . . . . . . 1 1 . . . . . . . . 1 . . Alerts 1 | . . . . . . . . . . . . . . . . . . . . . . . . 1 Misdirections 10 | . . . . . . . . . . . . . . . . . . . . . . . . 10 Weapon Failures 4 | . . . . . . . . . . . . . 1 . 1 . . . . . . 1 1 . Overload Shots . | . . . . . . . . . . . . . . . . . . . . . . . . . Overflow Damage 374 | . . . . . . . . . . . 30 . . . . . . 3 . . . 239 . 102 Projectiles . | . . . . . . . . . . . . . . . . . . . . . . . . . Explosions 344 | . . . . . . . . . . . . . . . . . . 3 . . . 239 . 102 Melee 30 | . . . . . . . . . . . 30 . . . . . . . . . . . . . Knockbacks 5 | . . . . . . . . . . . . . . . 2 . . . . . . . . 3 Impact 3 | . . . . . . . . . . . . . . . . . . . . . . . . 3 Kinetic 2 | . . . . . . . . . . . . . . . 2 . . . . . . . . . Secondary . | . . . . . . . . . . . . . . . . . . . . . . . . . Self-Inflicted Damage 508 | . . . . . . 72 . . . . . . . . . . . 190 63 60 . 80 . 43 Shots 20 | . . . . . . 2 . . . . . . . . . . . 8 3 3 . 2 . 2 Rammed 15 | . . . . . . . . . . . . . . . . . . . . . . 1 . 14 Targets Rammed 15 | . . . . . . . . . . . . . . . . . . . . . . 1 . 14 Kicked . | . . . . . . . . . . . . . . . . . . . . . . . . . Crushed . | . . . . . . . . . . . . . . . . . . . . . . . . . Highest Temperature 483 | . 97 50 . . 113 449 412 354 . 453 196 340 283 . 396 45 483 117 . 12 477 461 188 376 Average Temperature 142 | . 27 26 . . 29 152 215 131 . 241 104 133 112 . 183 16 276 51 . 5 208 139 81 147 Received Heat Transfer 2654 | . 225 21 . . 304 369 . 50 . 78 30 20 165 . 299 . . 107 . 22 9 514 . 441 Effects 38 | . . . . . . 6 3 1 . 3 . 4 2 . 4 . 3 . . . 3 6 . 3 Shutdowns 16 | . . . . . . 4 2 1 . 3 . . . . 1 . 3 . . . 1 1 . . Energy Bleed 7 | . . . . . . . 1 . . . . . 1 . 1 . . . . . 1 . . 3 Interference 9 | . . . . . . 2 . . . . . 3 1 . . . . . . . . 3 . . Matter Decay 1 | . . . . . . . . . . . . . . . 1 . . . . . . . . . Short Circuit 3 | . . . . . . . . . . . . 1 . . . . . . . . 1 1 . . Damage (minor) 2 | . . . . . . . . . . . . . . . 1 . . . . . . 1 . . Siege Activations 1 | . . . . . . . . . . . . . . . . . . . . . . . 1 . Total Turns 27 | . . . . . . . . . . . . . . . . . . . . . . . 27 . Longest Duration 27 | . . . . . . . . . . . . . . . . . . . . . . . 27 . Martial Activations . | . . . . . . . . . . . . . . . . . . . . . . . . . Shielding Activations . | . . . . . . . . . . . . . . . . . . . . . . . . . Robots Disrupted 2 | . . . . . . . . . . . . . 1 . 1 . . . . . . . . . Combat Hostiles 2 | . . . . . . . . . . . . . 1 . 1 . . . . . . . . . Robots Corrupted . | . . . . . . . . . . . . . . . . . . . . . . . . . Combat Hostiles . | . . . . . . . . . . . . . . . . . . . . . . . . . Parts Fried 12 | . . . . . . 3 . 3 . . . 2 . . . . . . . . . 1 1 2 Impact Corruptions . | . . . . . . . . . . . . . . . . . . . . . . . . . Robots Melted . | . . . . . . . . . . . . . . . . . . . . . . . . . Combat Hostiles . | . . . . . . . . . . . . . . . . . . . . . . . . . Parts Melted 6 | . . . . . 2 . . . . . . . . . . . . . . . . 2 1 1 Heat Transferred 5778 | . 222 74 . . . 150 . 261 . . . 50 185 . 406 37 148 333 . . 111 3068 572 161 Parts Sabotaged . | . . . . . . . . . . . . . . . . . . . . . . . . . Parts Stolen . | . . . . . . . . . . . . . . . . . . . . . . . . . Parts Stripped . | . . . . . . . . . . . . . . . . . . . . . . . . . Power Chain Reactions 4 | . . . . . . 2 . 1 . . . 1 . . . . . . . . . . . . Alert | -11 -10 -10 -10 -9 -8 -7 -7 -7 -7 -6 -6 -6 -6 -6 -5 -5 -5 -5 -5 -4 -4 -4 -4 -3 ------- Run | Yrd Mat Min Exi Min Mat Fac Low Low Dat Pro Fac Low Low Zio Pro Fac Upp Upp War Pro Fac Ext Cet Res Maximum Alert Level 5 | . . . . . . 1 . . . . . . . . . 3 . . . . 1 5 4 5 Low Security (%) 53 | 100 100 100 . 100 100 95 . . . . 100 . . . . . . . . . 82 22 . . Level 1 9 | . . . . . . 4 . . . . . . . . . 17 . . . . 17 27 . . Level 2 13 | . . . . . . . . . . . . . . . . 41 . . . . . 30 . 26 Level 3 11 | . . . . . . . . . . . . . . . . 41 . . . . . 13 88 4 Level 4 11 | . . . . . . . . . . . . . . . . . . . . . . 1 11 68 Level 5 . | . . . . . . . . . . . . . . . . . . . . . . 4 . . High Security . | . . . . . . . . . . . . . . . . . . . . . . . . . Max Security . | . . . . . . . . . . . . . . . . . . . . . . . . . Peak Influence 1885 | . 116 92 . . 108 206 . . . . 30 . . . . 909 . . . . 258 1885 1125 1606 Initial 1051 | . . 16 . . . 45 . . . . . . . . . 904 . . . . . 109 1051 643 Average 421 | . 41 31 . . 32 114 . . . . 2 . . . . 632 . . . . 141 510 1033 1137 Influence Increases 9692 | . 227 206 . . 338 427 105 220 . 60 58 115 120 28 397 920 30 475 125 210 604 2822 314 1891 Destroy 0b10 Robot/C 4600 | . 140 160 . . 220 200 80 160 . 60 20 80 100 20 260 . 20 440 120 180 240 1300 160 640 Destroy 0b10 Robot/NC 205 | . 10 . . . 10 15 . . . . 5 . . . 10 5 . 5 5 . 20 55 10 55 Destroy Leader 686 | . 34 30 . . 44 50 10 30 . . 10 20 20 . 20 . 10 30 . 30 54 146 . 148 Allied During Kill 1726 | . . 16 . . 10 . . 15 . . . . . 8 77 . . . . . 66 1088 97 349 Successful Hack 42 | . 13 . . . 7 14 . . . . 8 . . . . . . . . . . . . . Disable Machine 345 | . . . . . . 120 . . . . 15 . . . . 15 . . . . 120 30 15 30 Destroy Structure 678 | . . . . . 2 28 . . . . . . . . . . . . . . 104 188 32 324 Advance Influence 900 | . . . . . . . . . . . . . . . . 900 . . . . . . . . Lose Combat Pursuer 510 | . 30 . . . 45 . 15 15 . . . 15 . . 30 . . . . . . 15 . 345 Influence Decreases 8086 | . 183 182 68 . 238 378 181 293 . 60 58 115 98 46 393 660 298 407 77 326 380 1168 1119 1358 Entered New Map 1908 | . . 28 68 . . 55 56 15 . . . . . 22 4 4 100 . 68 116 . 115 827 430 Time Decay 4503 | . 173 134 . . 228 323 125 208 . 50 58 115 98 24 274 326 198 367 9 210 310 553 222 498 Search Patrol Dispatched 300 | . . . . . . . . . . . . . . . . 300 . . . . . . . . Lost Part 630 | . 10 . . . 10 . . 30 . 10 . . . . 40 . . 40 . . 10 100 70 310 Lost Ally 745 | . . 20 . . . . . 40 . . . . . . 75 30 . . . . 60 400 . 120 Squads Dispatched 33 | . . . . . 1 4 . . . . 4 . . . 1 1 . 1 . . 2 9 . 10 Investigation 4 | . . . . . . 2 . . . . 1 . . . . . . . . . . 1 . . Extermination 6 | . . . . . . 1 . . . . 1 . . . . . . . . . 1 . . 3 Reinforcement 12 | . . . . . . 1 . . . . 2 . . . . 1 . . . . 1 3 . 4 Assault 9 | . . . . . . . . . . . . . . . 1 . . 1 . . . 5 . 2 Garrison 2 | . . . . . 1 . . . . . . . . . . . . . . . . . . 1 Intercept . | . . . . . . . . . . . . . . . . . . . . . . . . . Searches Triggered 2 | . . . . . . . . . . . . . . . . 2 . . . . . . . . Data Miner Redirects 4 | . . . . . . . . . . . . . . . . . . . . . . 3 . 1 Construction Impeded 2 | . . . . . . . . . . . . . . . . . . . . . . 2 . . Haulers Reinforced 2 | . . . . . . . . . . . . . . . . . . . . . 1 . . 1 Active Scanning Responses . | . . . . . . . . . . . . . . . . . . . . . . . . . Cargo Convoy Interrupts . | . . . . . . . . . . . . . . . . . . . . . . . . . Stealth | -11 -10 -10 -10 -9 -8 -7 -7 -7 -7 -6 -6 -6 -6 -6 -5 -5 -5 -5 -5 -4 -4 -4 -4 -3 --------- Run | Yrd Mat Min Exi Min Mat Fac Low Low Dat Pro Fac Low Low Zio Pro Fac Upp Upp War Pro Fac Ext Cet Res Distress Signals 11 | . . . . . 1 . . . . . . . . . . . . . 1 . 1 2 2 4 Communications Jammed . | . . . . . . . . . . . . . . . . . . . . . . . . . Distress Signals . | . . . . . . . . . . . . . . . . . . . . . . . . . Times Spotted 324 | . 13 8 . . 13 12 5 11 . 3 5 7 9 1 25 . 1 23 13 10 12 71 10 72 Peak Tracking Total 14 | . 6 3 . . 3 5 4 4 . 3 1 2 3 1 7 . 1 9 10 5 4 14 5 13 Tactical Retreats 20 | . 2 . . . 2 . 1 1 . . . 1 . . 2 . . . . . . 1 . 10 Traps | -11 -10 -10 -10 -9 -8 -7 -7 -7 -7 -6 -6 -6 -6 -6 -5 -5 -5 -5 -5 -4 -4 -4 -4 -3 ------- Run | Yrd Mat Min Exi Min Mat Fac Low Low Dat Pro Fac Low Low Zio Pro Fac Upp Upp War Pro Fac Ext Cet Res Traps Triggered 8 | . 1 . . . . 3 . . . . . . . . . . . . . . . 2 . 2 Indirectly . | . . . . . . . . . . . . . . . . . . . . . . . . . Trap Hack Attempts . | . . . . . . . . . . . . . . . . . . . . . . . . . Triggered . | . . . . . . . . . . . . . . . . . . . . . . . . . Disarmed . | . . . . . . . . . . . . . . . . . . . . . . . . . Reprogrammed . | . . . . . . . . . . . . . . . . . . . . . . . . . Reused . | . . . . . . . . . . . . . . . . . . . . . . . . . Traps Extracted . | . . . . . . . . . . . . . . . . . . . . . . . . . Installed . | . . . . . . . . . . . . . . . . . . . . . . . . . Triggered . | . . . . . . . . . . . . . . . . . . . . . . . . . Machines | -11 -10 -10 -10 -9 -8 -7 -7 -7 -7 -6 -6 -6 -6 -6 -5 -5 -5 -5 -5 -4 -4 -4 -4 -3 ---------- Run | Yrd Mat Min Exi Min Mat Fac Low Low Dat Pro Fac Low Low Zio Pro Fac Upp Upp War Pro Fac Ext Cet Res Machines Disabled 28 | . . . . . . 8 . 1 . . 1 1 . 1 . 1 . . . . 8 4 1 2 Max in Single Turn 5 | . . . . . . 5 . 1 . . 1 1 . . . 1 . . . . 5 2 1 1 Garrison Access 3 | . . . . . 1 . . . . . 1 . . . . 1 . . . . . . . . Machines Repaired . | . . . . . . . . . . . . . . . . . . . . . . . . . Machines Dismantled . | . . . . . . . . . . . . . . . . . . . . . . . . . Machines Sabotaged . | . . . . . . . . . . . . . . . . . . . . . . . . . Overloaded Fab Kills . | . . . . . . . . . . . . . . . . . . . . . . . . . Hacking | -11 -10 -10 -10 -9 -8 -7 -7 -7 -7 -6 -6 -6 -6 -6 -5 -5 -5 -5 -5 -4 -4 -4 -4 -3 --------- Run | Yrd Mat Min Exi Min Mat Fac Low Low Dat Pro Fac Low Low Zio Pro Fac Upp Upp War Pro Fac Ext Cet Res Machines Accessed 33 | . 5 . 1 . 2 2 . 1 4 . 6 . . . . 2 . . 6 . . . 1 3 Terminals 12 | . 5 . . . 1 1 . . . . 4 . . . . . . . . . . . 1 . Fabricators 2 | . . . . . . 1 . . . . . . . . . 1 . . . . . . . . Repair Stations 2 | . . . . . . . . . . . . . . . . . . . . . . . . 2 Recycling Units . | . . . . . . . . . . . . . . . . . . . . . . . . . Scanalyzers . | . . . . . . . . . . . . . . . . . . . . . . . . . Garrison Access 5 | . . . . . 1 . . . . . 2 . . . . 1 . . . . . . . 1 Total Hacks 86 | . 14 . 1 . 5 4 . 1 29 . 14 . . . . 3 . . 9 . . . 3 3 Successful 55 | . 8 . 1 . 2 2 . 1 29 . 2 . . . . 1 . . 9 . . . . . Failed 31 | . 6 . . . 3 2 . . . . 12 . . . . 2 . . . . . . 3 3 Catastrophic 4 | . 1 . . . . . . . . . 3 . . . . . . . . . . . . . Database Lockouts . | . . . . . . . . . . . . . . . . . . . . . . . . . Manual 74 | . 8 . . . 2 . . . . . 2 . . . . 9 . . . . 17 23 1 12 Terminals 33 | . 14 . . . 3 3 . . . . 10 . . . . . . . . . . . 3 . Fabricators 3 | . . . . . . 1 . . . . . . . . . 2 . . . . . . . . Repair Stations 2 | . . . . . . . . . . . . . . . . . . . . . . . . 2 Recycling Units . | . . . . . . . . . . . . . . . . . . . . . . . . . Scanalyzers . | . . . . . . . . . . . . . . . . . . . . . . . . . Garrison Access 8 | . . . . . 2 . . . . . 4 . . . . 1 . . . . . . . 1 Terminal Hacks 48 | . 5 . 1 . 1 1 . 1 29 . 1 . . . . . . . 9 . . . . . Record 20 | . . . 1 . . . . . 11 . . . . . . . . . 8 . . . . . Part Schematic 9 | . . . . . . . . . 9 . . . . . . . . . . . . . . . Robot Schematic 6 | . . . . . . . . . 6 . . . . . . . . . . . . . . . Robot Analysis 2 | . . . . . 1 . . . . . 1 . . . . . . . . . . . . . Prototype ID Bank 3 | . . . . . . . . . 3 . . . . . . . . . . . . . . . Open Door 2 | . . . . . . . . 1 . . . . . . . . . . 1 . . . . . Level Access Points 1 | . 1 . . . . . . . . . . . . . . . . . . . . . . . Branch Access Points 2 | . 1 . . . . 1 . . . . . . . . . . . . . . . . . . Emergency Access Points 1 | . 1 . . . . . . . . . . . . . . . . . . . . . . . Registered Components 1 | . 1 . . . . . . . . . . . . . . . . . . . . . . . Zone Layout 1 | . 1 . . . . . . . . . . . . . . . . . . . . . . . Fabricator Hacks 1 | . . . . . . 1 . . . . . . . . . . . . . . . . . . Network Status 1 | . . . . . . 1 . . . . . . . . . . . . . . . . . . Repair Station Hacks . | . . . . . . . . . . . . . . . . . . . . . . . . . Recycling Unit Hacks . | . . . . . . . . . . . . . . . . . . . . . . . . . Scanalyzer . | . . . . . . . . . . . . . . . . . . . . . . . . . Garrison Access Hacks 3 | . . . . . 1 . . . . . 1 . . . . 1 . . . . . . . . Seal Access 3 | . . . . . 1 . . . . . 1 . . . . 1 . . . . . . . . Unauthorized Hacks 3 | . 3 . . . . . . . . . . . . . . . . . . . . . . . Terminals 3 | . 3 . . . . . . . . . . . . . . . . . . . . . . . Botnet 3 | . 3 . . . . . . . . . . . . . . . . . . . . . . . Fabricators . | . . . . . . . . . . . . . . . . . . . . . . . . . Repair Stations . | . . . . . . . . . . . . . . . . . . . . . . . . . Recycling Units . | . . . . . . . . . . . . . . . . . . . . . . . . . Scanalyzers . | . . . . . . . . . . . . . . . . . . . . . . . . . Garrison Access . | . . . . . . . . . . . . . . . . . . . . . . . . . Data Cores Recovered 1 | . . . . . . . . . . . . . . . . 1 . . . . . . . . Used . | . . . . . . . . . . . . . . . . . . . . . . . . . Hacking Detections 18 | . 4 . . . 2 1 . . . . 6 . . . . 1 . . . . . . 1 3 Full Trace Events 2 | . . . . . . 1 . . . . 1 . . . . . . . . . . . . . Feedback Events 1 | . . . . . . . . . . . 1 . . . . . . . . . . . . . Hackware Fried 1 | . . . . . . . . . . . 1 . . . . . . . . . . . . . Feedback Blocked . | . . . . . . . . . . . . . . . . . . . . . . . . . Robot Schematics Acquired 10 | . . . . . . . . . 6 . . . . . . . . . . . . 4 . . Robots Built . | . . . . . . . . . . . . . . . . . . . . . . . . . Authchips . | . . . . . . . . . . . . . . . . . . . . . . . . . Time . | . . . . . . . . . . . . . . . . . . . . . . . . . Total Robot Build Rating . | . . . . . . . . . . . . . . . . . . . . . . . . . Part Schematics Acquired 9 | . . . . . . . . . 9 . . . . . . . . . . . . . . . Parts Built . | . . . . . . . . . . . . . . . . . . . . . . . . . Authchips . | . . . . . . . . . . . . . . . . . . . . . . . . . Time . | . . . . . . . . . . . . . . . . . . . . . . . . . Total Part Build Rating . | . . . . . . . . . . . . . . . . . . . . . . . . . Parts Repaired . | . . . . . . . . . . . . . . . . . . . . . . . . . Time . | . . . . . . . . . . . . . . . . . . . . . . . . . Parts Recycled . | . . . . . . . . . . . . . . . . . . . . . . . . . Recycled Matter . | . . . . . . . . . . . . . . . . . . . . . . . . . Retrieved Matter . | . . . . . . . . . . . . . . . . . . . . . . . . . Retrieved Components . | . . . . . . . . . . . . . . . . . . . . . . . . . Parts Scanalyzed . | . . . . . . . . . . . . . . . . . . . . . . . . . Part Schematics Acquired . | . . . . . . . . . . . . . . . . . . . . . . . . . Parts Damaged . | . . . . . . . . . . . . . . . . . . . . . . . . . Bothacking | -11 -10 -10 -10 -9 -8 -7 -7 -7 -7 -6 -6 -6 -6 -6 -5 -5 -5 -5 -5 -4 -4 -4 -4 -3 ------------ Run | Yrd Mat Min Exi Min Mat Fac Low Low Dat Pro Fac Low Low Zio Pro Fac Upp Upp War Pro Fac Ext Cet Res Used RIF Installer . | . . . . . . . . . . . . . . . . . . . . . . . . . Robots Hacked . | . . . . . . . . . . . . . . . . . . . . . . . . . Non-combat . | . . . . . . . . . . . . . . . . . . . . . . . . . Combat . | . . . . . . . . . . . . . . . . . . . . . . . . . Robot Hacks Applied . | . . . . . . . . . . . . . . . . . . . . . . . . . Relay Couplers Released 3 | . . . . . . . . . . . . . . . . . . . . . . . . 3 Programmers 3 | . . . . . . . . . . . . . . . . . . . . . . . . 3 Fabnet Peak Effective % . | . . . . . . . . . . . . . . . . . . . . . . . . . Robots Rewired 20 | . . . . . . . . 3 . . . . . . 2 . . . . . . 15 . . Allies Hacked 1 | . . . . . . . . . . . . . . . . . . . . . 1 . . . Hacks Repelled . | . . . . . . . . . . . . . . . . . . . . . . . . . Allies | -11 -10 -10 -10 -9 -8 -7 -7 -7 -7 -6 -6 -6 -6 -6 -5 -5 -5 -5 -5 -4 -4 -4 -4 -3 -------- Run | Yrd Mat Min Exi Min Mat Fac Low Low Dat Pro Fac Low Low Zio Pro Fac Upp Upp War Pro Fac Ext Cet Res Total Allies 50 | . . 3 . . . . . 3 . . . . . 4 2 1 . . . . 6 23 5 3 Largest Group 12 | . . 3 2 2 2 . . 3 . . . . . 4 4 2 . . . . 4 12 6 5 Highest-Rated Group 772 | . . 40 32 32 32 . . 90 . . . . . 151 148 61 . . . . 412 772 617 507 Highest-Rated Ally 269 | . . 16 16 16 16 . . 30 . . . . . 39 39 33 . . . . 103 159 153 269 Zionite Dispatches 10 | . . . . . . . . . . . . . . . . 1 . . . . 3 3 . 3 Heavy 5 | . . . . . . . . . . . . . . . . . . . . . 3 2 . . Experimental 1 | . . . . . . . . . . . . . . . . . . . . . . . . 1 Thermal Resupply 2 | . . . . . . . . . . . . . . . . . . . . . . 1 . 1 Explosive Resupply 1 | . . . . . . . . . . . . . . . . 1 . . . . . . . . Defense Resupply 1 | . . . . . . . . . . . . . . . . . . . . . . . . 1 Total Orders 6 | . . . . . . . . . . . . . . . . 4 . . . . . 1 . 1 STAY 1 | . . . . . . . . . . . . . . . . 1 . . . . . . . . DROP 3 | . . . . . . . . . . . . . . . . 1 . . . . . 1 . 1 RETURN 2 | . . . . . . . . . . . . . . . . 2 . . . . . . . . Ally Attacks 438 | . . 10 . . 38 . . 10 . . . . . 5 71 1 . . . . 18 178 25 82 Total Damage 17063 | . . 91 . . 459 . . 352 . . . . . 99 2024 15 . . . . 748 8332 1141 3802 Kills 91 | . . 4 . . 3 . . . . . . . . 1 10 . . . . . 4 48 7 14 Allies Corrupted 5 | . . . . . . . . . . . . . . . 1 . . . . . . 1 . 3 Allies Melted 3 | . . . . . . . . . . . . . . . . . . . 2 . . 1 . . Intel | -11 -10 -10 -10 -9 -8 -7 -7 -7 -7 -6 -6 -6 -6 -6 -5 -5 -5 -5 -5 -4 -4 -4 -4 -3 ------- Run | Yrd Mat Min Exi Min Mat Fac Low Low Dat Pro Fac Low Low Zio Pro Fac Upp Upp War Pro Fac Ext Cet Res Active Infowar (turns) 13591 | . . . . . . . 779 674 . 698 612 503 655 1591 828 728 606 1318 1856 1039 812 514 24 354 Optics 5105 | . . . . . . . . . . . 612 493 655 1591 828 728 198 . . . . . . . Sensors 12726 | . . . . . . . 779 674 . 698 612 503 655 1591 828 727 606 1318 1856 1039 708 4 24 104 Decoding 5934 | . . . . . . . . . . . . . . . . 696 606 1318 1856 1039 419 . . . Machine Analysis 354 | . . . . . . . . . . . . . . . . . . . . . . . . 354 ECM 870 | . . . . . . . . . . . . . . . . . . . . . 360 510 . . Robot Analysis Total 2 | . . . . . 1 . . . . . 1 . . . . . . . . . . . . . Derelict Logs Recovered 11 | . . 2 . . . . 2 1 . 1 . . . 1 1 . . 1 . 2 . . . . Drone Launches 2 | . . . . . . . . . . . . . . . . 2 . . . . . . . . Drone Recoveries 2 | . . . . . . . . . . . . . . . . 2 . . . . . . . . Decoded 0b10 Intel 19 | . . . . . . . . . . . . . . . . 12 . . . . 7 . . . Traps 12 | . . . . . . . . . . . . . . . . 11 . . . . 1 . . . Emergency Access 5 | . . . . . . . . . . . . . . . . . . . . . 5 . . . Exits 2 | . . . . . . . . . . . . . . . . 1 . . . . 1 . . . Zionite Intel Received 5 | . . . . . . . . . . . . . . . . 1 . . . . 1 3 . . Branch Access 1 | . . . . . . . . . . . . . . . . . . . . . 1 . . . Component Stockpiles 1 | . . . . . . . . . . . . . . . . 1 . . . . . . . . Unaware Schematics 1 | . . . . . . . . . . . . . . . . . . . . . . 1 . . Active Terminals 1 | . . . . . . . . . . . . . . . . . . . . . . 1 . . Depthwide Sectors/-1 1 | . . . . . . . . . . . . . . . . . . . . . . 1 . . Exploration | -11 -10 -10 -10 -9 -8 -7 -7 -7 -7 -6 -6 -6 -6 -6 -5 -5 -5 -5 -5 -4 -4 -4 -4 -3 ------------- Run | Yrd Mat Min Exi Min Mat Fac Low Low Dat Pro Fac Low Low Zio Pro Fac Upp Upp War Pro Fac Ext Cet Res Turns Passed 19769 | 75 590 503 410 53 627 1058 780 861 133 706 612 531 655 1591 828 728 606 1318 1856 1039 812 1608 463 1326 Spaces Moved 10550 | 53 288 289 253 31 287 615 625 597 84 411 334 277 321 964 427 393 345 475 744 604 374 662 150 947 Core 464 | 26 . . . . . . . . . . . . . . . . . . . . . . . 438 Treads 8248 | 27 288 289 253 31 287 100 . 48 84 411 334 277 321 964 427 393 345 475 744 604 374 662 150 360 Legs . | . . . . . . . . . . . . . . . . . . . . . . . . . Wheels 1689 | . . . . . . 515 625 549 . . . . . . . . . . . . . . . . Hover 149 | . . . . . . . . . . . . . . . . . . . . . . . . 149 Flight . | . . . . . . . . . . . . . . . . . . . . . . . . . Fastest Speed 50 | 50 160 160 160 160 160 115 115 115 160 160 160 160 160 160 160 160 162 162 167 167 160 160 160 50 Average Speed 158 | 106 160 160 160 160 160 132 115 119 160 160 160 173 178 160 161 161 162 242 238 167 164 160 160 92 Slowest Speed 460 | 160 160 160 160 160 160 245 115 460 160 160 160 260 255 160 250 162 162 245 246 167 245 160 160 240 Overloaded Moves . | . . . . . . . . . . . . . . . . . . . . . . . . . Propulsion Burnouts . | . . . . . . . . . . . . . . . . . . . . . . . . . Robots Hopped . | . . . . . . . . . . . . . . . . . . . . . . . . . Potential Cave-ins 1 | . . . . . . . . . . . . . . . . . . . . . . . . 1 Cave-ins Triggered . | . . . . . . . . . . . . . . . . . . . . . . . . . Exploration Rate (%) 50 | 4 52 69 65 8 22 14 75 69 69 61 12 54 55 90 64 10 52 58 89 88 12 78 66 30 Regions Visited 24 Branch Regions 17 Pre-discovered Areas 12 | . . 1 1 . . . 2 . 1 . . . . 1 . . . 1 . 1 . 4 . . Known Exits Taken 19 | . 1 . . . . 1 1 1 1 1 1 1 1 1 1 1 1 1 1 1 1 1 1 . Unknown Exits Taken 5 | 1 . 1 1 1 1 . . . . . . . . . . . . . . . . . . . Scrap Searched 23 | . . 1 . . . . 2 . . 4 . 2 2 4 2 . 3 2 . 1 . . . . Spaces Dug 75 | . . . . . . . . . . . . . . . . . . 40 . . 2 . . 33 Terrain Destroyed 785 | . . . . . . 25 . 3 . . . . . . 14 . 3 202 45 145 43 104 3 198 Melee 2 | . . . . . . . . . . . . . . . . . . . . . 2 . . . Projectile 130 | . . . . . . . . . . . . . . . 14 . 3 4 . . 7 35 3 64 AOE 653 | . . . . . . 25 . 3 . . . . . . . . . 198 45 145 34 69 . 134 Terrain Rammed . | . . . . . . . . . . . . . . . . . . . . . . . . . Walls Destroyed . | . . . . . . . . . . . . . . . . . . . . . . . . . Machines Disabled . | . . . . . . . . . . . . . . . . . . . . . . . . . Actions | -11 -10 -10 -10 -9 -8 -7 -7 -7 -7 -6 -6 -6 -6 -6 -5 -5 -5 -5 -5 -4 -4 -4 -4 -3 --------- Run | Yrd Mat Min Exi Min Mat Fac Low Low Dat Pro Fac Low Low Zio Pro Fac Upp Upp War Pro Fac Ext Cet Res Total 12872 | 71 356 320 258 35 408 792 672 710 83 448 406 303 373 1017 515 482 380 609 812 614 540 1111 343 1214 Wait 951 | 4 11 18 4 4 42 73 29 43 . 12 56 4 19 15 16 55 26 114 28 . 87 135 110 46 Move 10526 | 52 287 288 252 30 286 614 624 596 83 410 333 276 320 963 426 392 344 474 743 603 373 661 149 947 Hop . | . . . . . . . . . . . . . . . . . . . . . . . . . Pick Up 203 | 9 10 5 2 1 22 19 3 13 . 5 6 3 4 13 3 9 3 1 4 . 18 15 20 15 Fast Attach 52 | 1 . . . . . 4 . 1 . . . . . 3 4 1 . . 9 . 1 9 3 16 Attach 113 | 5 5 1 . . 5 6 1 10 . 2 3 1 . . 3 7 . 1 . . 12 12 14 25 Detach 21 | . . . . . . . . . . 1 . . . . . 1 . . . . 5 2 3 9 Swap 91 | . 1 1 . . 9 8 3 1 . 2 1 3 5 6 . 6 1 3 7 . 8 11 10 5 Drop 168 | . 4 1 . . 13 19 3 9 . 3 3 3 4 17 2 8 1 . 16 . 15 11 17 19 Fire 469 | . 38 6 . . 31 40 9 22 . 13 2 13 8 . 34 3 5 16 4 11 17 63 17 117 Melee 14 | . . . . . . 1 . . . . 2 . 7 . . . . . 1 . 3 . . . Ram 6 | . . . . . . . . . . . . . . . . . . . . . . . . 6 Kick . | . . . . . . . . . . . . . . . . . . . . . . . . . Crush 10 | . . . . . . . . . . . . . . . . . . . . . . 1 . 9 Escape Stasis 8 | . . . . . . 8 . . . . . . . . . . . . . . . . . . Rewire 240 | . . . . . . . . 15 . . . . 6 . 27 . . . . . 1 191 . . Trap . | . . . . . . . . . . . . . . . . . . . . . . . . . Miscellaneous . | . . . . . . . . . . . . . . . . . . . . . . . . . Route ------- -11/Scrapyard -10/Materials (discovered 6 exits: Mat x3 / *Min x2 / [*Sub]) -10/Mines (discovered 2 exits: *Mat / *Exi) -10/Exiles -9/Mines -8/Materials -7/Factory (discovered 4 exits: Sto x2 / *Low x2) -7/Lower Caves -7/Lower Caves (discovered 2 exits: *Fac / *Dat) -7/Data Miner -6/Proximity Caves -6/Factory -6/Lower Caves -6/Lower Caves (discovered 2 exits: *Fac / *Zio) -6/Zion -5/Proximity Caves -5/Factory (discovered 2 exits: *Fac / *Upp) -5/Upper Caves -5/Upper Caves -5/Warlord -4/Proximity Caves -4/Factory (discovered 5 exits: *Res / Upp x2 / *Ext x2) -4/Extension (discovered 2 exits: *Res / *Cet) -4/Cetus (discovered 2 exits: *Res / [*Arc]) -3/Research History --------- Turn | Location | Event 6 | -11/Scrapyard | Discovered new exit (range 13) 76 | -11/Scrapyard | Entered Materials 124 | -10/Materials | Identified exit to Materials 285 | -10/Materials | Identified exit to Mines 305 | -10/Materials | Build established: Mutant 657 | -10/Materials | Discovered new exit (range 6) 666 | -10/Materials | Entered Mines 732 | -10/Mines | Assisted by bots powering up and referring to "LRC-V3" 882 | -10/Mines | Learned Materials security intel 946 | -10/Mines | Discovered exit to Materials (range 11) 955 | -10/Mines | Learned location of Storage (-7) 1149 | -10/Mines | Deemed a non-threat by the Exiles lab entrance 1149 | -10/Mines | Discovered new exit (range 5) 1169 | -10/Mines | Entered Exiles 1169 | -10/Exiles | Accompanied by 2 allies 1213 | -10/Exiles | Met 8R-AWN 1235 | -10/Exiles | Met EX-HEX 1313 | -10/Exiles | Met EX-DEC 1338 | -10/Exiles | Learned location of Zion (-6) 1366 | -10/Exiles | Met EX-BIN 1560 | -10/Exiles | Discovered new exit (range 10) 1579 | -10/Exiles | Entered Mines 1579 | -9/Mines | Accompanied by 2 allies 1583 | -9/Mines | Met a Derelict bent on vengeance 1606 | -9/Mines | Discovered new exit (range 14) 1632 | -9/Mines | Entered Materials 1632 | -8/Materials | Accompanied by 2 allies 1632 | -8/Materials | Evolved 4 slots: Propulsion x1, Utility x1, Weapon x2 1942 | -8/Materials | Build established: Scavenger-Tank 1954 | -8/Materials | Discovered new exit (range 5) 2090 | -8/Materials | Garrison activated, responded to threat 2259 | -8/Materials | Entered Factory 2259 | -7/Factory | Evolved 2 slots: Power x1, Propulsion x1 2813 | -7/Factory | Identified exit to Storage 2813 | -7/Factory | Identified exit to Lower Caves 3317 | -7/Factory | Entered Lower Caves 3550 | -7/Lower Caves | Learned location of Extension (-4) 3586 | -7/Lower Caves | Build established: Skirmisher 3788 | -7/Lower Caves | Encountered a Warlord checkpoint 4049 | -7/Lower Caves | Discovered new exit (range 15) 4096 | -7/Lower Caves | Identified exit to Lower Caves 4097 | -7/Lower Caves | Entered another Lower Caves area 4097 | -7/Lower Caves | Spotted B-75 Beast 4129 | -7/Lower Caves | Discovered new exit (range 15) 4179 | -7/Lower Caves | Attacked by a delusional Derelict stockpiling Unaware 4223 | -7/Lower Caves | Identified exit to Factory 4452 | -7/Lower Caves | Destroyed B-75 Beast 4729 | -7/Lower Caves | Learned 4 Factory zone layouts 4769 | -7/Lower Caves | Discovered new exit (range 6) 4772 | -7/Lower Caves | Attracted the attention of an 0b10 checkpoint 4809 | -7/Lower Caves | Identified exit to Data Miner 4958 | -7/Lower Caves | Entered Data Miner 4958 | -7/Data Miner | Discovered new exit (range 6) 4989 | -7/Data Miner | Met Data Miner 5027 | -7/Data Miner | Learned location of Section 7 (-2) 5027 | -7/Data Miner | Acquired the access code to Warlord's prototype stash 5051 | -7/Data Miner | Received God Mode back door access code from Data Miner 5086 | -7/Data Miner | Identified exit to Proximity Caves 5091 | -7/Data Miner | Entered Proximity Caves 5160 | -6/Proximity Caves | Attracted the attention of an 0b10 checkpoint 5690 | -6/Proximity Caves | Build established: Derelict-Skirmisher 5736 | -6/Proximity Caves | Discovered exit to Factory (range 14) 5797 | -6/Proximity Caves | Entered Factory 5797 | -6/Factory | Evolved 2 slots: Utility x2 5798 | -6/Factory | Identified exit to Lower Caves 5920 | -6/Factory | Mak. System Shield fried by hacking feedback 6232 | -6/Factory | Build established: Derelict-Assassin 6409 | -6/Factory | Entered Lower Caves 6527 | -6/Lower Caves | Attacked by a delusional Derelict stockpiling parts 6704 | -6/Lower Caves | Build established: Derelict-Skirmisher 6923 | -6/Lower Caves | Discovered new exit (range 10) 6939 | -6/Lower Caves | Identified exit to Lower Caves 6940 | -6/Lower Caves | Entered another Lower Caves area 7038 | -6/Lower Caves | Discovered new exit (range 6) 7051 | -6/Lower Caves | Identified exit to Factory 7419 | -6/Lower Caves | Build established: Derelict-Assassin 7548 | -6/Lower Caves | Discovered new exit (range 19) 7591 | -6/Lower Caves | Attracted the attention of an 0b10 checkpoint 7594 | -6/Lower Caves | Identified exit to Zion 7595 | -6/Lower Caves | Entered Zion 7666 | -6/Zion | System corruption cleaned by Quarantine Array 7781 | -6/Zion | Given the Hacking Drone Bay 7786 | -6/Zion | Found Prototype Device 7800 | -6/Zion | Discovered new exit (range 14) 7856 | -6/Zion | Received a visual enhancement algorithm 8049 | -6/Zion | Learned Factory emergency access door positions 8364 | -6/Zion | Acquired unknown access codes intercepted by a Zionite 8490 | -6/Zion | Met Imprinter 8519 | -6/Zion | Imprinted 8522 | -6/Zion | Declared Zion's savior 9103 | -6/Zion | Build established: Derelict-Skirmisher 9173 | -6/Zion | Identified exit to Proximity Caves 9186 | -6/Zion | Entered Proximity Caves 9186 | -5/Proximity Caves | Accompanied by 4 allies 9263 | -5/Proximity Caves | Spotter reported a threat 9330 | -5/Proximity Caves | Spotter reported a threat 9353 | -5/Proximity Caves | Attracted the attention of an 0b10 outpost 9383 | -5/Proximity Caves | Spotter reported a threat 9407 | -5/Proximity Caves | Lost 3 parts (2n1w) 9442 | -5/Proximity Caves | Spotter reported a threat 9464 | -5/Proximity Caves | Spotter reported a threat 9515 | -5/Proximity Caves | Attracted the attention of an 0b10 checkpoint 9565 | -5/Proximity Caves | Spotter reported a threat 9618 | -5/Proximity Caves | Spotter reported a threat 9671 | -5/Proximity Caves | Build established: Derelict-Assassin 9815 | -5/Proximity Caves | Spotter reported a threat 9868 | -5/Proximity Caves | Spotter reported a threat 10014 | -5/Proximity Caves | Entered Factory 10014 | -5/Factory | Accompanied by 1 ally 10014 | -5/Factory | Evolved 2 slots: Utility x2 10094 | -5/Factory | Discovered new exit (range 11) 10110 | -5/Factory | Identified exit to Upper Caves 10314 | -5/Factory | Search patrols dispatched 10344 | -5/Factory | Build established: Derelict-Skirmisher 10391 | -5/Factory | Retrieved Zion intel report: Component Stockpiles 10428 | -5/Factory | Identified Hacking Drone Bay 10477 | -5/Factory | Zion Explosive Resupply teleported in 10483 | -5/Factory | Found Prototype Launcher 10483 | -5/Factory | Identified Scatter Rocket Array 10520 | -5/Factory | Identified exit to Factory 10614 | -5/Factory | Search patrols dispatched 10742 | -5/Factory | Entered Upper Caves 11246 | -5/Upper Caves | Build established: Scavenger-Tank 11337 | -5/Upper Caves | Discovered new exit (range 4) 11345 | -5/Upper Caves | Identified exit to Upper Caves 11348 | -5/Upper Caves | Entered another Upper Caves area 11365 | -5/Upper Caves | Attracted the attention of an 0b10 outpost 11424 | -5/Upper Caves | Destroyed 14 combat bots 11433 | -5/Upper Caves | Lost 4 parts (2n1u1w) 11712 | -5/Upper Caves | Build established: Derelict-Skirmisher 12644 | -5/Upper Caves | Discovered new exit (range 11) 12664 | -5/Upper Caves | Identified exit to Warlord 12666 | -5/Upper Caves | Entered Warlord 13513 | -5/Warlord | Rebuked by Warlord 13538 | -5/Warlord | Warlord's base attacked by MAIN.C 13760 | -5/Warlord | Found Prototype Device 13857 | -5/Warlord | Build established: Derelict-Tank 13888 | -5/Warlord | Warlord forces counterattacked 14011 | -5/Warlord | Found Prototype Energy Gun 14011 | -5/Warlord | Identified Vortex Rail 14015 | -5/Warlord | Found Vortex Rail 14213 | -5/Warlord | Warlord base infiltrated, sounded retreat 14399 | -5/Warlord | Spotted Striker 14458 | -5/Warlord | Spotted Executioner 14463 | -5/Warlord | Destroyed Warlord 14463 | -5/Warlord | Destroyed Executioner 14488 | -5/Warlord | Discovered new exit (range 15) 14495 | -5/Warlord | Destroyed 7 combat bots 14498 | -5/Warlord | Lost 13 allies 14519 | -5/Warlord | Identified exit to Proximity Caves 14522 | -5/Warlord | Entered Proximity Caves 14744 | -4/Proximity Caves | Build established: Scavenger-Tank 15138 | -4/Proximity Caves | Learned Research emergency access door positions 15143 | -4/Proximity Caves | Learned location of Testing (-3) 15173 | -4/Proximity Caves | Spotted B-86 Titan 15185 | -4/Proximity Caves | Destroyed B-86 Titan 15362 | -4/Proximity Caves | Discovered exit to Factory (range 9) 15561 | -4/Proximity Caves | Entered Factory 15561 | -4/Factory | Evolved 2 slots: Utility x2 15783 | -4/Factory | Zion Heavy squad teleported in 15875 | -4/Factory | Build established: Derelict-Tank 15960 | -4/Factory | Identified exit to Research 16018 | -4/Factory | Found Prototype Protection 16019 | -4/Factory | Identified Zio. Weapon Casing 16116 | -4/Factory | Retrieved Zion intel report: Branch Access 16116 | -4/Factory | Identified exit to Upper Caves 16116 | -4/Factory | Identified exit to Extension 16122 | -4/Factory | Zion Heavy squad teleported in 16242 | -4/Factory | Zion Heavy squad teleported in 16292 | -4/Factory | Build established: Messiah-Tank 16373 | -4/Factory | Entered Extension 16373 | -4/Extension | Accompanied by 3 allies 16426 | -4/Extension | Rescued a captive Derelict 16488 | -4/Extension | Zion Heavy squad teleported in 16582 | -4/Extension | Rescued a captive Derelict 16692 | -4/Extension | Retrieved Zion intel report: Depthwide Sectors/-3 16693 | -4/Extension | Zion Thermal Resupply teleported in 17039 | -4/Extension | Spotted B-86 Titan 17048 | -4/Extension | Spotted B-86 Titan 17078 | -4/Extension | Allies destroyed B-86 Titan 17088 | -4/Extension | Allies destroyed B-86 Titan 17112 | -4/Extension | Lost 6 parts (1p1u4w) 17112 | -4/Extension | Lost 4 allies 17233 | -4/Extension | Zion Heavy squad teleported in 17254 | -4/Extension | Incoming investigation squad redirected 17325 | -4/Extension | Retrieved Zion intel report: Unaware Schematics 17369 | -4/Extension | Retrieved Zion intel report: Active Terminals 17373 | -4/Extension | First assault squad dispatched 17394 | -4/Extension | Incoming assault squad redirected 17420 | -4/Extension | Rescued a captive Derelict 17520 | -4/Extension | Lost 8 allies 17651 | -4/Extension | Incoming assault squad redirected 17757 | -4/Extension | Terminal network hard line cut 17847 | -4/Extension | Rescued A7 17896 | -4/Extension | Disrupted transfer network 17898 | -4/Extension | Discovered new exit (range 13) 17906 | -4/Extension | Discovered exit to Research (range 15) 17952 | -4/Extension | Identified exit to Cetus 17960 | -4/Extension | Lost 7 allies 17963 | -4/Extension | Destroyed 22 combat bots 17981 | -4/Extension | Entered Cetus 17981 | -4/Cetus | Accompanied by 2 allies (A7) 17986 | -4/Cetus | Acquired a Cetus Manufacturing Module code from A7 18001 | -4/Cetus | Spotted Cetus Guard 18001 | -4/Cetus | Spotted Cetus Guard 18002 | -4/Cetus | Spotted Cetus Guard 18003 | -4/Cetus | Spotted Cetus Guard 18006 | -4/Cetus | Allies destroyed Cetus Guard 18013 | -4/Cetus | Allies destroyed Cetus Guard 18025 | -4/Cetus | Allies destroyed Cetus Guard 18027 | -4/Cetus | Destroyed Cetus Guard 18048 | -4/Cetus | Lost 6 parts (1p1n2u2w) 18147 | -4/Cetus | Started Cetus Manufacturing Module 18163 | -4/Cetus | Escorted A7 to Cetus Mainframe 18172 | -4/Cetus | Manufactured an Enhanced Grunt 18197 | -4/Cetus | Manufactured an Enhanced Grunt 18203 | -4/Cetus | Discovered new exit (range 15) 18222 | -4/Cetus | Manufactured an Enhanced Grunt 18247 | -4/Cetus | Manufactured an Enhanced Grunt 18272 | -4/Cetus | Manufactured an Enhanced Grunt 18284 | -4/Cetus | System corruption reached 10% 18307 | -4/Cetus | Spotted Cetus Guard 18307 | -4/Cetus | Spotted Cetus Guard 18309 | -4/Cetus | Spotted Cetus Guard 18310 | -4/Cetus | Spotted Cetus Guard 18311 | -4/Cetus | Destroyed Cetus Guard 18319 | -4/Cetus | Allies destroyed Cetus Guard 18321 | -4/Cetus | Allies destroyed Cetus Guard 18329 | -4/Cetus | Destroyed Cetus Guard 18339 | -4/Cetus | Discovered exit to Research (range 15) 18347 | -4/Cetus | Scared off Revision 17 18395 | -4/Cetus | System corruption reached 30% 18444 | -4/Cetus | Entered Research 18444 | -3/Research | Accompanied by 5 allies (A7) 18444 | -3/Research | Evolved 2 slots: Power x1, Utility x1 18449 | -3/Research | Received a hacking code to weaken MAIN.C 18465 | -3/Research | Build established: Scavenger-Tank 18638 | -3/Research | Zion Defense Resupply teleported in 18662 | -3/Research | Found Prototype Device 18662 | -3/Research | Identified Exp. Thermal Defense Suite 18694 | -3/Research | First assault squad dispatched 18834 | -3/Research | Garrison activated, responded to threat 18906 | -3/Research | Lost 5 allies 18949 | -3/Research | Lost 4 parts (3p1w) 19052 | -3/Research | Lost 3 parts (2u1w) 19156 | -3/Research | Lost 8 parts (1p4u3w) 19225 | -3/Research | Lost 3 parts (1p1n1u) 19321 | -3/Research | System corruption reached 10% 19403 | -3/Research | Spotted B-86 Titan 19416 | -3/Research | Lost 5 parts (1p2n1u1w) 19435 | -3/Research | Zion Experimental squad teleported in 19493 | -3/Research | System corruption reached 30% 19531 | -3/Research | Zion Thermal Resupply teleported in 19554 | -3/Research | Core integrity fell below 50% 19716 | -3/Research | Terminal network hard line cut 19731 | -3/Research | Core integrity fell below 20% 19744 | -3/Research | Incoming assault squad redirected 19770 | -3/Research | Destroyed by P-80 Master with Gamma Rifle Last Messages --------------- 19735_ System corrupted: Matter fused (-7). 19736_ Critical hit (Burn: +50). 19736_ G-73 Enforcer suffers critical hit (Burn). 19744_ ALERT: Higher priority target reported, redirecting assault. 19754_ System corrupted: Energy discharge (-33). 19756_ >> Machine Analyzer network decryption results: 19756_ DSF Access x1 19756_ Terminal x1 19756_ >> Machine Analyzer network decryption results: 19756_ Terminal x1 19759_ Terminal disabled. 19764_ Knocked back. 19767_ >> Machine Analyzer network decryption results: 19767_ Garrison Access x1 19770_ X3,1BRMNPK=XNBL,&BNENDL X&6TGSRK FKSYZ Map ----- +----------------------------------------------------+ | ???????????????????????????????? | | ???????????????????????????????? | | ???????????????????????????????? | | ???????????????????????????????? | | ???????????????????????????????? | | ???????????????????????????????? | | ???????????????????????????????? | | ??????????????????????????""???? | | ??????????????????????????""???? | | ??????????????????????????""???? | | ???????????????????????????T???? | | ??????????????????????????""???? | | ??????????????????????????""???? | | ??????????????????????????""##?? | | ???????????????????????????? #?? | | ???????????????????????????? #?? | | ??????????????????????????? #?? | | ??????????????????????????? #?? | | ??????????????????????????? #?? | | ?????????????????????????? #?? | | ?????????????????????????? #?? | | ??????????????##########?? #?? | | ??????????????# #?? #?? | | ??????????????# ### ### | | ??????????????# " # # | | ??????????????# """ # @ # | | ??????????????# G # # | | ??????????????# """ + # | | ??????????????# " # # | | ??????????????# !; # | | ??????????????# # H # | | ??????????????########+### ### | | ??????????????] """ # ##? | | ?????????????? "T" + T#? | | ????+????????# # #? | | ?????????????# ! # % ##? | | ?????????????# * #p #?? | | ?????????????# = #p #?? | | ?????????????# # #?? | | ?????????????############# #?? | | ?????????????????# ## ##? | | ?????????????????# ! # #? | | ?????????????????# # T #? | | #+#########??##### + " #? | | !#??# + # #? | | ! #??# ### ! # #? | | ! #??# #?########## ###? | | ! #??# #??????????# #??? | | ####+######?????# #??? | | # #?????# #??? | +----------------------------------------------------+ Best States ------------- Heat Dissipation 112 Energy Generation 75 Energy Capacity 750 Matter Stores 300 Matter Capacity 300 Sight Range 22 Robot Scan Range 16 Terrain Scan Density 10 ECM Strength 2 EM Shielding 2 Armor Coverage 1125 Resistance: KI 25 Resistance: TH 30 Resistance: EM 15 Weapon Shielding 100 Phase Shifting 10 Evasion (%) 55 Recoil Reduction 4 Particle Charging 35 Offensive Hacking 10 Defensive Hacking 11 Authchip Count 2 Item Schematics ----------------- Combat Drone Bay | -7/Data Miner | Free Lgt. Regenerative Plating | -7/Data Miner | Free Multireflex Exoskeleton | -7/Data Miner | Free Com. Ion Cannon | -7/Data Miner | Free Gravity Neutralizer | -7/Data Miner | Free Field Propulsion Drive | -7/Data Miner | Free Imp. Corruption Screen | -7/Data Miner | Free KE Penetrator | -7/Data Miner | Free Hvy. Disruptor Cannon | -7/Data Miner | Free Robot Schematics ------------------ W-25 Informer | -7/Data Miner | Free G-47 Trooper | -7/Data Miner | Free M-22 Extractor | -7/Data Miner | Free R-10 Processor | -7/Data Miner | Free B-48 Gladiator | -7/Data Miner | Free L-41 Fighter | -7/Data Miner | Free T-07 Excavator | -4/Extension | Z-intel M-30 Cleanser | -4/Extension | Z-intel X-72 Disruptor | -4/Extension | Z-intel R-06 Scavenger | -4/Extension | Z-intel Fabricated ------------ Nothing Repaired ---------- Nothing Alien Tech Used ----------------- None Achievements -------------- None Challenges ------------ None Game ------ Seed MachineDirectedCapacitor Manual? 0 Play Time 02:25:38 Cumulative 215.8 hours Start 2025.08.28 @ 03:06:46 End 2025.08.28 @ 05:54:01 Sessions 3 Manual Loads 0 Difficulty Rogue Special Mode None Game No. 323 Rogue 323 Adventurer 0 Explorer 0 Win Type - Total 4 Types 3/0/1/0/0/0/0/0/0/0 Lore% 80 Gallery% 76 Achievement% 57 Wizard Run 0 Options --------- Layout 1 ASCII 0 Keyboard 0 Movement Mouse Keybinds 0 Fullscreen 1 Font 32/SmallcapsGlow Map View 50x35 Zoom Use 0% Tactical HUD 1 Map Filters NONE Filters NONE Steam 1 RUN: b5eeb2f3-cd88-4cd9-a32f-06ff8e222688